2CCN - Level 2 Cost Centre Name,,9CCN - Level 9 Cost Centre Name,9CCC - Level 9 Cost Centre Code,9AN - Level 9 Account Name,9AC - Level 9 Account Code,Date posted,Date of transaction,Merchant Name,MerchantCity,Originating Account Name,Originating Account Number,MCC/SIC Code,MCC Description,Original Amount,Currency,Conversion Rate,Billed Amount,DebitCredit,ReferenceNbr,Statement Cycle,AccountName
Gloucester City Council,23UE,DOCKS COMPLEX - SERVICES,RB100,CLEANING MATERIALS,3600,2015-03-03,2015-03-02,TESCO STORE 2581,GLOUCESTER,REDACTED,471565******8223,5411,GROCERY STORES  SUPERMARKETS,30.19,Pound Sterling (826),1,30.19,Debit,74697055062050257806833,2015-04-02,GLOUCESTER CC
Gloucester City Council,23UE,DOCKS COMPLEX - SERVICES,RB100,OPERATIONAL EQUIPMENT <5000,5012,2015-03-05,2015-03-04,B & Q,GLOUCESTER GL,REDACTED,471565******8223,5211,LUMBER AND BUILDING MATERIALS STORES,16.27,Pound Sterling (826),1,16.27,Debit,74579155064003879710601,2015-04-02,GLOUCESTER CC
Gloucester City Council,23UE,DOCKS COMPLEX - SERVICES,RB100,OPERATIONAL EQUIPMENT <5000,5012,2015-03-06,2015-03-05,B & Q,GLOUCESTER GL,REDACTED,471565******8223,5211,LUMBER AND BUILDING MATERIALS STORES,6.21,Pound Sterling (826),1,6.21,Debit,74579155065008179960367,2015-04-02,GLOUCESTER CC
Gloucester City Council,23UE,DOCKS COMPLEX - SERVICES,RB100,OPERATIONAL EQUIPMENT <5000,5012,2015-03-19,2015-03-18,B & Q,GLOUCESTER GL,REDACTED,471565******8223,5211,LUMBER AND BUILDING MATERIALS STORES,4.44,Pound Sterling (826),1,4.44,Debit,74579155078004473519996,2015-04-02,GLOUCESTER CC
Gloucester City Council,23UE,DOCKS COMPLEX - SERVICES,RB100,OPERATIONAL EQUIPMENT <5000,5012,2015-03-20,2015-03-19,TIMPSON LTD,GLOUCESTER,REDACTED,471565******8223,7251,SHOE REPAIR SHOPS  SHOE SHINE PARLORS & HAT CLEANING SHOPS,62,Pound Sterling (826),1,62,Debit,74579155078008166552230,2015-04-02,GLOUCESTER CC
Gloucester City Council,23UE,HMO LICENCES,HE520,OPERATIONAL EQUIPMENT <5000,5012,2015-03-25,2015-03-24,TRAVELODGE WEBSITE,RESERVATION,REDACTED,471565******8476,3615,TRAVELODGE,56,Pound Sterling (826),1,56,Debit,74424715083298169434939,2015-04-02,GLOUCESTER CC
Gloucester City Council,23UE,SAFER STRONGER COMMUNITIES,FP841,OTHER MINOR SUPPLIES SERVICES,5590,2015-03-26,2015-03-25,EQUESTRIANCLEARANC,1422317381,REDACTED,471565******8476,5941,SPORTING GOODS STORES,24.89,Pound Sterling (826),1,24.89,Debit,74579155085006475285428,2015-04-02,GLOUCESTER CC
Gloucester City Council,23UE,HMO LICENCES,HE520,OPERATIONAL EQUIPMENT <5000,5012,2015-03-26,2015-03-24,PREMIER INN44013605,HEATHROW,REDACTED,471565******8476,3811,PREMIER INN,51,Pound Sterling (826),1,51,Debit,74019475085529000023360,2015-04-02,GLOUCESTER CC
Gloucester City Council,23UE,FOLK MUSEUM,LM210,CATERING PROVISIONS -FOOD,5110,2015-03-18,2015-03-17,BOOKER LIMITED GLOUCESTER,GLOUCESTER,REDACTED,471565******9991,5811,CATERERS,138.32,Pound Sterling (826),1,138.32,Debit,74463665076910761121551,2015-04-02,GLOUCESTER CC
Gloucester City Council,23UE,CITY MUSEUM AND ART GALLERY,LM200,EVENTS,5952,2015-03-20,2015-03-19,TESCO STORE 2581,GLOUCESTER,REDACTED,471565******9991,5411,GROCERY STORES  SUPERMARKETS,16.65,Pound Sterling (826),1,16.65,Debit,74697055079080253475508,2015-04-02,GLOUCESTER CC
Gloucester City Council,23UE,FOLK MUSEUM,LM210,OPERATIONAL EQUIPMENT <5000,5012,2015-03-20,2015-03-19,Amazon Svcs Europe SAR,AMAZON.CO.UK,REDACTED,471565******9991,5942,BOOK STORES,3.84,Pound Sterling (826),1,3.84,Debit,74313225078000050958450,2015-04-02,GLOUCESTER CC
Gloucester City Council,23UE,FOLK MUSEUM,LM210,EXHIBITS AND COLLECTIONS,5038,2015-03-24,2015-03-22,STAND UP - HOOK UP 194,KEIGHLEY,REDACTED,471565******9991,5137,MEN'S WOMEN'S AND CHILDREN'S UNIFORMS AN,80,Pound Sterling (826),1,80,Debit,74745105083000017364730,2015-04-02,GLOUCESTER CC
Gloucester City Council,23UE,CITY MUSEUM AND ART GALLERY,LM200,ADVERTISING AND PUBLICITY,5702,2015-03-30,2015-03-28,FACEBK *AYSTM7JKW2,650-543-7818,REDACTED,471565******9991,7311,ADVERTISING SERVICES,18.67,Pound Sterling (826),1,18.67,Debit,74313225087000512036902,2015-04-02,GLOUCESTER CC
Gloucester City Council,23UE,FOLK MUSEUM,LM210,ADVERTISING AND PUBLICITY,5702,2015-03-30,2015-03-28,FACEBK *AYSTM7JKW2,650-543-7818,REDACTED,471565******9991,7311,ADVERTISING SERVICES,18.68,Pound Sterling (826),1,18.68,Debit,74313225087000512036902,2015-04-02,GLOUCESTER CC
Gloucester City Council,23UE,CITY MUSEUM AND ART GALLERY,LM200,ADVERTISING AND PUBLICITY,5702,2015-03-30,2015-03-29,FACEBK *TJKJM7NJW2,650-543-7818,REDACTED,471565******9991,7311,ADVERTISING SERVICES,25.20,Pound Sterling (826),1,25.20,Debit,74313225088000964826932,2015-04-02,GLOUCESTER CC
Gloucester City Council,23UE,FOLK MUSEUM,LM210,ADVERTISING AND PUBLICITY,5702,2015-03-30,2015-03-29,FACEBK *TJKJM7NJW2,650-543-7818,REDACTED,471565******9991,7311,ADVERTISING SERVICES,25.19,Pound Sterling (826),1,25.19,Debit,74313225088000964826932,2015-04-02,GLOUCESTER CC
Gloucester City Council,23UE,FOLK MUSEUM,LM210,EVENT COSTS,5009,2015-03-31,2015-03-27,WWW.THEWORKS.CO.UK,1213136000,REDACTED,471565******9991,5942,BOOK STORES,29.94,Pound Sterling (826),1,29.94,Debit,74830505088039365258765,2015-04-02,GLOUCESTER CC
Gloucester City Council,23UE,GUILDHALL BAR AND CAF�,LA210,CATERING PROVISIONS -LIQUOR,5111,2015-03-04,2015-03-03,ASDA SUPERSTORE,GLOUCESTER,REDACTED,471565******2470,5411,GROCERY STORES  SUPERMARKETS,22.93,Pound Sterling (826),1,22.93,Debit,74698175063060172356024,2015-04-02,GLOUCESTER CC
Gloucester City Council,23UE,GUILDHALL BAR AND CAF�,LA210,CATERING PROVISIONS -FOOD,5110,2015-03-04,2015-03-03,HOLLAND & BARRETT,GLOUCESTER,REDACTED,471565******2470,5999,MISCELLANEOUS AND RETAIL STORES,8.49,Pound Sterling (826),1,8.49,Debit,74579155063004473597981,2015-04-02,GLOUCESTER CC
Gloucester City Council,23UE,GUILDHALL BAR AND CAF�,LA210,CATERING PROVISIONS -FOOD,5110,2015-03-06,2015-03-05,ASDA SUPERSTORE,GLOUCESTER,REDACTED,471565******2470,5411,GROCERY STORES  SUPERMARKETS,45.58,Pound Sterling (826),1,45.58,Debit,74698175065080164266120,2015-04-02,GLOUCESTER CC
Gloucester City Council,23UE,GUILDHALL BAR AND CAF�,LA210,CATERING PROVISIONS -FOOD,5110,2015-03-09,2015-03-06,ASDA SUPERSTORE,GLOUCESTER,REDACTED,471565******2470,5411,GROCERY STORES  SUPERMARKETS,12.5,Pound Sterling (826),1,12.5,Debit,74698175066090196400422,2015-04-02,GLOUCESTER CC
Gloucester City Council,23UE,DOCKS COMPLEX - SERVICES,RB100,HIRE OF EQUIPMENT,5020,2015-03-09,2015-03-08,Amazon UK Marketplace,800-279-6620,REDACTED,471565******2470,5999,MISCELLANEOUS AND RETAIL STORES,6.95,Pound Sterling (826),1,6.95,Debit,74313225067000983407818,2015-04-02,GLOUCESTER CC
Gloucester City Council,23UE,GUILDHALL BAR AND CAF�,LA210,CATERING PROVISIONS -FOOD,5110,2015-03-10,2015-03-09,ASDA SUPERSTORE,GLOUCESTER,REDACTED,471565******2470,5411,GROCERY STORES  SUPERMARKETS,22.39,Pound Sterling (826),1,22.39,Debit,74698175069000181957754,2015-04-02,GLOUCESTER CC
Gloucester City Council,23UE,GLOUCESTER GUILDHALL,LA100,ARTISTS FEES,5355,2015-03-16,2015-03-14,MIPERMIT PARKING-DOM,INTERNET,REDACTED,471565******2470,7523,AUTOMOBILE PARKING LOTS AND GARAGES,10,Pound Sterling (826),1,10,Debit,74745105074040451730807,2015-04-02,GLOUCESTER CC
Gloucester City Council,23UE,GUILDHALL BAR AND CAF�,LA210,CATERING PROVISIONS -FOOD,5110,2015-03-17,2015-03-16,TESCO STORES 2581,GLOUCESTER,REDACTED,471565******2470,5411,GROCERY STORES  SUPERMARKETS,8.16,Pound Sterling (826),1,8.16,Debit,74698175076050121380618,2015-04-02,GLOUCESTER CC
Gloucester City Council,23UE,GUILDHALL BAR AND CAF�,LA210,CATERING PROVISIONS -FOOD,5110,2015-03-17,2015-03-16,TESCO STORES 2581,GLOUCESTER,REDACTED,471565******2470,5411,GROCERY STORES  SUPERMARKETS,7.71,Pound Sterling (826),1,7.71,Debit,74698175076050121380592,2015-04-02,GLOUCESTER CC
Gloucester City Council,23UE,GUILDHALL BAR AND CAF�,LA210,CATERING PROVISIONS -FOOD,5110,2015-03-17,2015-03-16,TESCO STORE 2581,GLOUCESTER,REDACTED,471565******2470,5411,GROCERY STORES  SUPERMARKETS,-7.71,Pound Sterling (826),1,-7.71,Credit,74697055076050121401153,2015-04-02,GLOUCESTER CC
Gloucester City Council,23UE,GUILDHALL BAR AND CAF�,LA210,CATERING PROVISIONS -FOOD,5110,2015-03-24,2015-03-23,WM MORRISON STORE,575 GLOUCESTE,REDACTED,471565******2470,5411,GROCERY STORES  SUPERMARKETS,42.11,Pound Sterling (826),1,42.11,Debit,74579155083006070563007,2015-04-02,GLOUCESTER CC
Gloucester City Council,23UE,GUILDHALL BAR AND CAF�,LA210,CATERING PROVISIONS -FOOD,5110,2015-03-25,2015-03-24,BOOKER LIMITED GLOUCESTER,GLOUCESTER,REDACTED,471565******2470,5811,CATERERS,41.08,Pound Sterling (826),1,41.08,Debit,74463665083910832187624,2015-04-02,GLOUCESTER CC
Gloucester City Council,23UE,GUILDHALL BAR AND CAF�,LA210,CATERING PROVISIONS -FOOD,5110,2015-04-02,2015-04-01,BOOKER LIMITED GLOUCESTER,GLOUCESTER,REDACTED,471565******2470,5811,CATERERS,147.04,Pound Sterling (826),1,147.04,Debit,74463665091910916822815,2015-04-02,GLOUCESTER CC
Gloucester City Council,23UE,BLACKFRIARS CATERING,LA220,CATERING PROVISIONS -FOOD,5110,2015-04-02,2015-04-01,ASDA SUPERSTORE,GLOUCESTER,REDACTED,471565******2470,5411,GROCERY STORES  SUPERMARKETS,26.65,Pound Sterling (826),1,26.65,Debit,74698175092070249153085,2015-04-02,GLOUCESTER CC
Gloucester City Council,23UE,ENVIRONMENTAL PLANNING,LM340,VOCATIONAL TRAINING,2970,2015-03-03,2015-03-02,THE TRAINLINE.COM,RAIL TICKET V,REDACTED,471565******4841,4112,PASSENGER RAILWAYS,77.01,Pound Sterling (826),1,77.01,Debit,74998865061508537757190,2015-04-02,GLOUCESTER CC
Gloucester City Council,23UE,ENVIRONMENTAL PLANNING,LM340,PUBLIC TRANSPORTATION,4061,2015-03-03,2015-03-02,THE TRAINLINE.COM,RAIL TICKET V,REDACTED,471565******4841,4112,PASSENGER RAILWAYS,16.68,Pound Sterling (826),1,16.68,Debit,74998865061508537764832,2015-04-02,GLOUCESTER CC
Gloucester City Council,23UE,ENVIRONMENTAL PLANNING,LM340,PUBLIC TRANSPORTATION,4061,2015-03-03,2015-03-02,THE TRAINLINE.COM,RAIL TICKET V,REDACTED,471565******4841,4112,PASSENGER RAILWAYS,29.33,Pound Sterling (826),1,29.33,Debit,74998865061508537757653,2015-04-02,GLOUCESTER CC
Gloucester City Council,23UE,DEVELOPMENT MANAGEMENT,PT200,VOCATIONAL TRAINING,2970,2015-03-04,2015-03-03,THE TRAINLINE.COM,RAIL TICKET V,REDACTED,471565******4841,4112,PASSENGER RAILWAYS,90.27,Pound Sterling (826),1,90.27,Debit,74998865062508558235091,2015-04-02,GLOUCESTER CC
Gloucester City Council,23UE,HMO LICENCES,HE520,PUBLIC TRANSPORTATION,4061,2015-03-04,2015-03-03,THE TRAINLINE.COM,RAIL TICKET V,REDACTED,471565******4841,4112,PASSENGER RAILWAYS,154.73,Pound Sterling (826),1,154.73,Debit,74998865062508558236545,2015-04-02,GLOUCESTER CC
Gloucester City Council,23UE,MEMBERS SUPPORT,RC300,PUBLIC TRANSPORTATION,4061,2015-03-05,2015-03-04,THE TRAINLINE.COM,RAIL TICKET V,REDACTED,471565******4841,4112,PASSENGER RAILWAYS,40.19,Pound Sterling (826),1,40.19,Debit,74998865063508576654967,2015-04-02,GLOUCESTER CC
Gloucester City Council,23UE,MEMBERS SUPPORT,RC300,PUBLIC TRANSPORTATION,4061,2015-03-05,2015-03-04,THE TRAINLINE.COM,RAIL TICKET V,REDACTED,471565******4841,4112,PASSENGER RAILWAYS,92,Pound Sterling (826),1,92,Debit,74998865063508576654306,2015-04-02,GLOUCESTER CC
Gloucester City Council,23UE,MEMBERS SUPPORT,RC300,PUBLIC TRANSPORTATION,4061,2015-03-05,2015-03-04,THE TRAINLINE.COM,RAIL TICKET V,REDACTED,471565******4841,4112,PASSENGER RAILWAYS,119.7,Pound Sterling (826),1,119.7,Debit,74998865063508576654686,2015-04-02,GLOUCESTER CC
Gloucester City Council,23UE,MEMBERS SUPPORT,RC300,PUBLIC TRANSPORTATION,4061,2015-03-05,2015-03-04,THE TRAINLINE.COM,RAIL TICKET V,REDACTED,471565******4841,4112,PASSENGER RAILWAYS,-77.5,Pound Sterling (826),1,-77.5,Credit,74998865063508576654538,2015-04-02,GLOUCESTER CC
Gloucester City Council,23UE,MEMBERS SUPPORT,RC300,PUBLIC TRANSPORTATION,4061,2015-03-05,2015-03-04,THE TRAINLINE.COM,RAIL TICKET V,REDACTED,471565******4841,4112,PASSENGER RAILWAYS,-22.2,Pound Sterling (826),1,-22.2,Credit,74998865063508576654801,2015-04-02,GLOUCESTER CC
Gloucester City Council,23UE,VEHICLES,RS140,VEHICLE LICENCES,4015,2015-03-06,2015-03-05,WWW.DVLA.GOV.UK,VEHICLE LICEN,REDACTED,471565******4841,9399,GOVERNMENT SERVICES NOT ELSEWHERE CLASSIFIED,227.5,Pound Sterling (826),1,227.5,Debit,74579155065007871524430,2015-04-02,GLOUCESTER CC
Gloucester City Council,23UE,GLOUCESTER GUILDHALL,LA100,MAINTENANCE OF EQUIPMENT,5030,2015-03-03,2015-03-01,PAYPAL *JAKETOMMOT,35314369001,REDACTED,471565******7657,5999,MISCELLANEOUS AND RETAIL STORES,28.2,Pound Sterling (826),1,28.2,Debit,74998765061508496476412,2015-04-02,GLOUCESTER CC
Gloucester City Council,23UE,GUILDHALL EVENTS,LA200,FEES FOR SERVICES RECEIVED,5350,2015-03-03,2015-03-02,MIPERMIT PARKING-DOM,INTERNET,REDACTED,471565******7657,7523,AUTOMOBILE PARKING LOTS AND GARAGES,10,Pound Sterling (826),1,10,Debit,74745105062050067985889,2015-04-02,GLOUCESTER CC
Gloucester City Council,23UE,GUILDHALL EVENTS,LA200,FEES FOR SERVICES RECEIVED,5350,2015-03-03,2015-03-02,MIPERMIT PARKING-DOM,INTERNET,REDACTED,471565******7657,7523,AUTOMOBILE PARKING LOTS AND GARAGES,10,Pound Sterling (826),1,10,Debit,74745105062050067986150,2015-04-02,GLOUCESTER CC
Gloucester City Council,23UE,GUILDHALL EVENTS,LA200,FEES FOR SERVICES RECEIVED,5350,2015-03-05,2015-03-04,Amazon Svcs Europe SAR,AMAZON.CO.UK,REDACTED,471565******7657,5942,BOOK STORES,50.12,Pound Sterling (826),1,50.12,Debit,74313225063000916831369,2015-04-02,GLOUCESTER CC
Gloucester City Council,23UE,GLOUCESTER GUILDHALL,LA100,FEES FOR SERVICES RECEIVED,5350,2015-03-05,2015-03-04,Amazon Svcs Europe SAR,AMAZON.CO.UK,REDACTED,471565******7657,5942,BOOK STORES,17.99,Pound Sterling (826),1,17.99,Debit,74313225063000971330992,2015-04-02,GLOUCESTER CC
Gloucester City Council,23UE,GLOUCESTER GUILDHALL,LA100,VOCATIONAL TRAINING,2970,2015-03-06,2015-03-05,WOWCHER,INTERNET,REDACTED,471565******7657,5192,BOOKS PERIODICALS AND NEWSPAPERS,29,Pound Sterling (826),1,29,Debit,74745095065080077284270,2015-04-02,GLOUCESTER CC
Gloucester City Council,23UE,GUILDHALL EVENTS,LA200,FEES FOR SERVICES RECEIVED,5350,2015-03-06,2015-03-05,MIPERMIT PARKING-DOM,INTERNET,REDACTED,471565******7657,7523,AUTOMOBILE PARKING LOTS AND GARAGES,10,Pound Sterling (826),1,10,Debit,74745105065080065331726,2015-04-02,GLOUCESTER CC
Gloucester City Council,23UE,GUILDHALL EVENTS,LA200,FEES FOR SERVICES RECEIVED,5350,2015-03-12,2015-03-11,MIPERMIT PARKING-DOM,INTERNET,REDACTED,471565******7657,7523,AUTOMOBILE PARKING LOTS AND GARAGES,10,Pound Sterling (826),1,10,Debit,74745105071020063499077,2015-04-02,GLOUCESTER CC
Gloucester City Council,23UE,GUILDHALL EVENTS,LA200,FEES FOR SERVICES RECEIVED,5350,2015-03-12,2015-03-11,MIPERMIT PARKING-DOM,INTERNET,REDACTED,471565******7657,7523,AUTOMOBILE PARKING LOTS AND GARAGES,10,Pound Sterling (826),1,10,Debit,74745105071020063499192,2015-04-02,GLOUCESTER CC
Gloucester City Council,23UE,GLOUCESTER GUILDHALL,LA100,GENERAL REPAIR/MAINT BUILDINGS,3000,2015-03-12,2015-03-11,BEST4FRAMES.CO.UK,0161 4490044,REDACTED,471565******7657,5970,ARTIST SUPPLY STORES  CRAFT SHOPS,66.24,Pound Sterling (826),1,66.24,Debit,74579155071008976028089,2015-04-02,GLOUCESTER CC
Gloucester City Council,23UE,GLOUCESTER GUILDHALL,LA100,MAINTENANCE OF EQUIPMENT,5030,2015-03-13,2015-03-12,Amazon Svcs Europe SAR,AMAZON.CO.UK,REDACTED,471565******7657,5942,BOOK STORES,17.99,Pound Sterling (826),1,17.99,Debit,74313225071000755860651,2015-04-02,GLOUCESTER CC
Gloucester City Council,23UE,GUILDHALL EVENTS,LA200,FEES FOR SERVICES RECEIVED,5350,2015-03-16,2015-03-12,PAYPAL *JUSTGIVING,35314369001,REDACTED,471565******7657,8398,CHARITABLE AND SOCIAL SERVICE ORGANIZATIONS,10,Pound Sterling (826),1,10,Debit,74998765072510679955193,2015-04-02,GLOUCESTER CC
Gloucester City Council,23UE,BLACKFRIARS,LA609,FEES FOR SERVICES RECEIVED,5350,2015-03-19,2015-03-18,LIGHTS4FUN.CO.UK,HARROGATE,REDACTED,471565******7657,5065,ELECTRICAL PARTS AND EQUIPMENT,205.33,Pound Sterling (826),1,205.33,Debit,74056575078003000123489,2015-04-02,GLOUCESTER CC
Gloucester City Council,23UE,GUILDHALL EVENTS,LA200,FEES FOR SERVICES RECEIVED,5350,2015-03-20,2015-03-19,MIPERMIT PARKING-DOM,INTERNET,REDACTED,471565******7657,7523,AUTOMOBILE PARKING LOTS AND GARAGES,30,Pound Sterling (826),1,30,Debit,74745105079080063078695,2015-04-02,GLOUCESTER CC
Gloucester City Council,23UE,GLOUCESTER GUILDHALL,LA100,VOCATIONAL TRAINING,2970,2015-03-20,2015-03-19,WOWCHER,INTERNET,REDACTED,471565******7657,5192,BOOKS PERIODICALS AND NEWSPAPERS,24,Pound Sterling (826),1,24,Debit,74745095079080090052708,2015-04-02,GLOUCESTER CC
Gloucester City Council,23UE,BLACKFRIARS,LA609,FEES FOR SERVICES RECEIVED,5350,2015-03-20,2015-03-19,Amazon Svcs Europe SAR,AMAZON.CO.UK,REDACTED,471565******7657,5942,BOOK STORES,17.9,Pound Sterling (826),1,17.9,Debit,74313225078000104904062,2015-04-02,GLOUCESTER CC
Gloucester City Council,23UE,BLACKFRIARS,LA609,FEES FOR SERVICES RECEIVED,5350,2015-03-20,2015-03-19,Groupon,www.groupon.c,REDACTED,471565******7657,7278,BUYING/SHOPPING SERVICES  CLUBS,19.98,Pound Sterling (826),1,19.98,Debit,74987505078576207941176,2015-04-02,GLOUCESTER CC
Gloucester City Council,23UE,BLACKFRIARS,LA609,FEES FOR SERVICES RECEIVED,5350,2015-03-20,2015-03-19,Groupon,www.groupon.c,REDACTED,471565******7657,7278,BUYING/SHOPPING SERVICES  CLUBS,13.98,Pound Sterling (826),1,13.98,Debit,74987505078576558151441,2015-04-02,GLOUCESTER CC
Gloucester City Council,23UE,BLACKFRIARS,LA609,FEES FOR SERVICES RECEIVED,5350,2015-03-20,2015-03-19,Groupon,www.groupon.c,REDACTED,471565******7657,7278,BUYING/SHOPPING SERVICES  CLUBS,10.98,Pound Sterling (826),1,10.98,Debit,74987505078576635021179,2015-04-02,GLOUCESTER CC
Gloucester City Council,23UE,BLACKFRIARS,LA609,FEES FOR SERVICES RECEIVED,5350,2015-03-20,2015-03-19,Groupon,www.groupon.c,REDACTED,471565******7657,7278,BUYING/SHOPPING SERVICES  CLUBS,24.98,Pound Sterling (826),1,24.98,Debit,74987505078576659361444,2015-04-02,GLOUCESTER CC
Gloucester City Council,23UE,GLOUCESTER GUILDHALL,LA100,MAINTENANCE OF EQUIPMENT,5030,2015-03-23,2015-03-20,Amazon UK Retail,AMAZON.CO.UK,REDACTED,471565******7657,5969,ALL OTHER DIRECT MARKETERS,33.78,Pound Sterling (826),1,33.78,Debit,74313225079000508794605,2015-04-02,GLOUCESTER CC
Gloucester City Council,23UE,BLACKFRIARS,LA609,FEES FOR SERVICES RECEIVED,5350,2015-03-23,2015-03-20,Amazon UK Marketplace,800-279-6620,REDACTED,471565******7657,5999,MISCELLANEOUS AND RETAIL STORES,5.99,Pound Sterling (826),1,5.99,Debit,74313225079000455268926,2015-04-02,GLOUCESTER CC
Gloucester City Council,23UE,BLACKFRIARS,LA609,FEES FOR SERVICES RECEIVED,5350,2015-03-23,2015-03-20,Amazon Svcs Europe SAR,AMAZON.CO.UK,REDACTED,471565******7657,5942,BOOK STORES,5.38,Pound Sterling (826),1,5.38,Debit,74313225079000516321581,2015-04-02,GLOUCESTER CC
Gloucester City Council,23UE,BLACKFRIARS,LA609,FEES FOR SERVICES RECEIVED,5350,2015-03-23,2015-03-20,Amazon UK Marketplace,800-279-6620,REDACTED,471565******7657,5999,MISCELLANEOUS AND RETAIL STORES,8.6,Pound Sterling (826),1,8.6,Debit,74313225079000543852673,2015-04-02,GLOUCESTER CC
Gloucester City Council,23UE,BLACKFRIARS,LA609,FEES FOR SERVICES RECEIVED,5350,2015-03-23,2015-03-20,Amazon Svcs Europe SAR,AMAZON.CO.UK,REDACTED,471565******7657,5942,BOOK STORES,5.6,Pound Sterling (826),1,5.6,Debit,74313225079000584399808,2015-04-02,GLOUCESTER CC
Gloucester City Council,23UE,BLACKFRIARS CATERING,LA220,CATERING PROVISIONS -FOOD,5110,2015-03-23,2015-03-21,Amazon UK Retail,AMAZON.CO.UK,REDACTED,471565******7657,5969,ALL OTHER DIRECT MARKETERS,72.62,Pound Sterling (826),1,72.62,Debit,74313225080000961239046,2015-04-02,GLOUCESTER CC
Gloucester City Council,23UE,BLACKFRIARS,LA609,FEES FOR SERVICES RECEIVED,5350,2015-03-23,2015-03-21,Amazon UK Marketplace,800-279-6620,REDACTED,471565******7657,5942,BOOK STORES,2.3,Pound Sterling (826),1,2.3,Debit,74313225080000961240705,2015-04-02,GLOUCESTER CC
Gloucester City Council,23UE,BLACKFRIARS,LA609,FEES FOR SERVICES RECEIVED,5350,2015-03-23,2015-03-21,Amazon UK Marketplace,800-279-6620,REDACTED,471565******7657,5999,MISCELLANEOUS AND RETAIL STORES,4.27,Pound Sterling (826),1,4.27,Debit,74313225080000963027324,2015-04-02,GLOUCESTER CC
Gloucester City Council,23UE,BLACKFRIARS,LA609,FEES FOR SERVICES RECEIVED,5350,2015-03-23,2015-03-21,Amazon Svcs Europe SAR,AMAZON.CO.UK,REDACTED,471565******7657,5942,BOOK STORES,9.24,Pound Sterling (826),1,9.24,Debit,74313225080000963123941,2015-04-02,GLOUCESTER CC
Gloucester City Council,23UE,BLACKFRIARS,LA609,FEES FOR SERVICES RECEIVED,5350,2015-03-23,2015-03-21,Amazon Svcs Europe SAR,AMAZON.CO.UK,REDACTED,471565******7657,5942,BOOK STORES,23.94,Pound Sterling (826),1,23.94,Debit,74313225080000099248158,2015-04-02,GLOUCESTER CC
Gloucester City Council,23UE,BLACKFRIARS,LA609,FEES FOR SERVICES RECEIVED,5350,2015-03-23,2015-03-22,Amazon Svcs Europe SAR,AMAZON.CO.UK,REDACTED,471565******7657,5942,BOOK STORES,5.2,Pound Sterling (826),1,5.2,Debit,74313225081000377676228,2015-04-02,GLOUCESTER CC
Gloucester City Council,23UE,BLACKFRIARS,LA609,STATIONERY,5302,2015-03-23,2015-03-22,Amazon Svcs Europe SAR,AMAZON.CO.UK,REDACTED,471565******7657,5942,BOOK STORES,31.56,Pound Sterling (826),1,31.56,Debit,74313225081000467901981,2015-04-02,GLOUCESTER CC
Gloucester City Council,23UE,BLACKFRIARS,LA609,FEES FOR SERVICES RECEIVED,5350,2015-03-24,2015-03-23,Amazon Svcs Europe SAR,AMAZON.CO.UK,REDACTED,471565******7657,5942,BOOK STORES,6.8,Pound Sterling (826),1,6.8,Debit,74313225082000850273823,2015-04-02,GLOUCESTER CC
Gloucester City Council,23UE,BLACKFRIARS,LA609,FEES FOR SERVICES RECEIVED,5350,2015-03-24,2015-03-23,Amazon Svcs Europe SAR,AMAZON.CO.UK,REDACTED,471565******7657,5942,BOOK STORES,4.65,Pound Sterling (826),1,4.65,Debit,74313225082000877125634,2015-04-02,GLOUCESTER CC
Gloucester City Council,23UE,BLACKFRIARS,LA609,FEES FOR SERVICES RECEIVED,5350,2015-03-24,2015-03-23,Amazon Svcs Europe SAR,AMAZON.CO.UK,REDACTED,471565******7657,5942,BOOK STORES,12.85,Pound Sterling (826),1,12.85,Debit,74313225082000928534164,2015-04-02,GLOUCESTER CC
Gloucester City Council,23UE,BLACKFRIARS CATERING,LA220,CATERING PROVISIONS -FOOD,5110,2015-03-24,2015-03-23,Amazon Svcs Europe SAR,AMAZON.CO.UK,REDACTED,471565******7657,5942,BOOK STORES,3.05,Pound Sterling (826),1,3.05,Debit,74313225082000932833016,2015-04-02,GLOUCESTER CC
Gloucester City Council,23UE,BLACKFRIARS CATERING,LA220,CATERING PROVISIONS -FOOD,5110,2015-03-25,2015-03-24,Amazon Svcs Europe SAR,AMAZON.CO.UK,REDACTED,471565******7657,5942,BOOK STORES,10.47,Pound Sterling (826),1,10.47,Debit,74313225083000336184312,2015-04-02,GLOUCESTER CC
Gloucester City Council,23UE,BLACKFRIARS,LA609,FEES FOR SERVICES RECEIVED,5350,2015-03-25,2015-03-24,Amazon Svcs Europe SAR,AMAZON.CO.UK,REDACTED,471565******7657,5942,BOOK STORES,5.56,Pound Sterling (826),1,5.56,Debit,74313225083000484451166,2015-04-02,GLOUCESTER CC
Gloucester City Council,23UE,GLOUCESTER GUILDHALL,LA100,GENERAL REPAIR/MAINT BUILDINGS,3000,2015-03-26,2015-03-25,WILKO RETAIL LIMIT,GLOUCESTER 14,REDACTED,471565******7657,5722,HOUSEHOLD APPLIANCE STORES,95.44,Pound Sterling (826),1,95.44,Debit,74579155085006471011216,2015-04-02,GLOUCESTER CC
Gloucester City Council,23UE,BLACKFRIARS CATERING,LA220,CATERING PROVISIONS -FOOD,5110,2015-03-26,2015-03-25,Amazon UK Retail,AMAZON.CO.UK,REDACTED,471565******7657,5969,ALL OTHER DIRECT MARKETERS,18.95,Pound Sterling (826),1,18.95,Debit,74313225084000003931788,2015-04-02,GLOUCESTER CC
Gloucester City Council,23UE,BLACKFRIARS,LA609,FEES FOR SERVICES RECEIVED,5350,2015-03-26,2015-03-25,PAYPAL *PARTYIDEASU,35314369001,REDACTED,471565******7657,5970,ARTIST SUPPLY STORES  CRAFT SHOPS,7.48,Pound Sterling (826),1,7.48,Debit,74998765084511873024121,2015-04-02,GLOUCESTER CC
Gloucester City Council,23UE,BLACKFRIARS CATERING,LA220,CATERING PROVISIONS -FOOD,5110,2015-03-27,2015-03-26,Amazon Svcs Europe SAR,AMAZON.CO.UK,REDACTED,471565******7657,5942,BOOK STORES,4.47,Pound Sterling (826),1,4.47,Debit,74313225085000267217238,2015-04-02,GLOUCESTER CC
Gloucester City Council,23UE,GLOUCESTER GUILDHALL,LA100,GENERAL REPAIR/MAINT BUILDINGS,3000,2015-03-30,2015-03-27,WWW.EASYLOCKS.CO.UK,8448709462,REDACTED,471565******7657,5251,HARDWARE STORES,159.74,Pound Sterling (826),1,159.74,Debit,74830505086174198598764,2015-04-02,GLOUCESTER CC
Gloucester City Council,23UE,GLOUCESTER GUILDHALL,LA100,GENERAL REPAIR/MAINT BUILDINGS,3000,2015-03-30,2015-03-27,B & Q,GLOUCESTER GL,REDACTED,471565******7657,5211,LUMBER AND BUILDING MATERIALS STORES,36.54,Pound Sterling (826),1,36.54,Debit,74579155087003875395665,2015-04-02,GLOUCESTER CC
Gloucester City Council,23UE,BLACKFRIARS,LA609,FEES FOR SERVICES RECEIVED,5350,2015-03-30,2015-03-28,PAYPAL *WEBSTUFF,35314369001,REDACTED,471565******7657,5999,MISCELLANEOUS AND RETAIL STORES,19.38,Pound Sterling (826),1,19.38,Debit,74998765088512920514482,2015-04-02,GLOUCESTER CC
Gloucester City Council,23UE,BLACKFRIARS,LA609,FEES FOR SERVICES RECEIVED,5350,2015-03-30,2015-03-28,Amazon Svcs Europe SAR,AMAZON.CO.UK,REDACTED,471565******7657,5942,BOOK STORES,9.33,Pound Sterling (826),1,9.33,Debit,74313225087000450418310,2015-04-02,GLOUCESTER CC
Gloucester City Council,23UE,GLOUCESTER GUILDHALL,LA100,VOCATIONAL TRAINING,2970,2015-03-30,2015-03-28,WOWCHER,INTERNET,REDACTED,471565******7657,5192,BOOKS PERIODICALS AND NEWSPAPERS,59,Pound Sterling (826),1,59,Debit,74745095089040731737859,2015-04-02,GLOUCESTER CC
Gloucester City Council,23UE,BLACKFRIARS,LA609,FEES FOR SERVICES RECEIVED,5350,2015-04-02,2015-04-01,POUNDLAND LTD 1167,GLOUCESTER,REDACTED,471565******7657,5310,DISCOUNT STORES,12,Pound Sterling (826),1,12,Debit,74579155092006378638195,2015-04-02,GLOUCESTER CC
Gloucester City Council,23UE,GLOUCESTER GUILDHALL,LA100,OPERATIONAL EQUIPMENT <5000,5012,2015-04-02,2015-04-01,BIGDUG LIMITED,TEWKESBURY 4,REDACTED,471565******7657,5072,HARDWARE EQUIPMENT AND SUPPLIES,500,Pound Sterling (826),1,500,Debit,74830505091174148604350,2015-04-02,GLOUCESTER CC
Gloucester City Council,23UE,GLOUCESTER GUILDHALL,LA100,OPERATIONAL EQUIPMENT <5000,5012,2015-04-02,2015-04-01,BIGDUG LIMITED,TEWKESBURY 4,REDACTED,471565******7657,5072,HARDWARE EQUIPMENT AND SUPPLIES,132.4,Pound Sterling (826),1,132.4,Debit,74830505091174148604368,2015-04-02,GLOUCESTER CC
Gloucester City Council,23UE,BLACKFRIARS,LA609,FEES FOR SERVICES RECEIVED,5350,2015-04-02,2015-04-01,Amazon Svcs Europe SAR,AMAZON.CO.UK,REDACTED,471565******7657,5942,BOOK STORES,10.44,Pound Sterling (826),1,10.44,Debit,74313225091000218165553,2015-04-02,GLOUCESTER CC
Gloucester City Council,23UE,BUSINESS TRANSFORMATION & TECH,RT700,COMPUTER CONSUMABLES,5422,2015-03-09,2015-03-06,Amazon UK Retail,AMAZON.CO.UK,REDACTED,471565******3318,5969,ALL OTHER DIRECT MARKETERS,34.99,Pound Sterling (826),1,34.99,Debit,74313225065000032354161,2015-04-02,GLOUCESTER CC
Gloucester City Council,23UE,BUSINESS TRANSFORMATION & TECH,RT700,COMPUTER CONSUMABLES,5422,2015-03-09,2015-03-06,EBUYER (UK) LTD,SHEFFIELD,REDACTED,471565******3318,5722,HOUSEHOLD APPLIANCE STORES,176.84,Pound Sterling (826),1,176.84,Debit,74678585068090666313594,2015-04-02,GLOUCESTER CC
Gloucester City Council,23UE,BUSINESS TRANSFORMATION & TECH,RT700,COMPUTER CONSUMABLES,5422,2015-03-09,2015-03-06,EBUYER (UK) LTD,SHEFFIELD,REDACTED,471565******3318,5722,HOUSEHOLD APPLIANCE STORES,117.89,Pound Sterling (826),1,117.89,Debit,74678585068090666315136,2015-04-02,GLOUCESTER CC
Gloucester City Council,23UE,BUSINESS TRANSFORMATION & TECH,RT700,COMPUTER HARDWARE <5000,5420,2015-03-19,2015-03-18,Amazon Svcs Europe SAR,AMAZON.CO.UK,REDACTED,471565******3318,5942,BOOK STORES,14.99,Pound Sterling (826),1,14.99,Debit,74313225077000717436669,2015-04-02,GLOUCESTER CC
Gloucester City Council,23UE,BUSINESS TRANSFORMATION & TECH,RT700,COMPUTER HARDWARE <5000,5420,2015-03-20,2015-03-19,Amazon Svcs Europe SAR,AMAZON.CO.UK,REDACTED,471565******3318,5942,BOOK STORES,2.98,Pound Sterling (826),1,2.98,Debit,74313225078000880267197,2015-04-02,GLOUCESTER CC
Gloucester City Council,23UE,BUSINESS TRANSFORMATION & TECH,RT700,COMPUTER HARDWARE <5000,5420,2015-03-30,2015-03-28,Amazon Svcs Europe SAR,AMAZON.CO.UK,REDACTED,471565******3318,5942,BOOK STORES,59.96,Pound Sterling (826),1,59.96,Debit,74313225087000375764434,2015-04-02,GLOUCESTER CC
Gloucester City Council,23UE,BUSINESS TRANSFORMATION & TECH,RT700,COMPUTER HARDWARE <5000,5420,2015-03-12,2015-03-11,APPLE ONLINE STORE GBP,0845-600-1683,REDACTED,471565******5409,5732,ELECTRONIC SALES,319,Pound Sterling (826),1,319,Debit,74313225070000301734070,2015-04-02,GLOUCESTER CC
Gloucester City Council,23UE,FINANCIAL SERVICES,RT200,PUBLIC TRANSPORTATION,4061,2015-03-17,2015-03-16,TRAINLINE.COM,03332 022 222,REDACTED,471565******5409,4112,PASSENGER RAILWAYS,9.95,Pound Sterling (826),1,9.95,Debit,74998865075510784172929,2015-04-02,GLOUCESTER CC
Gloucester City Council,23UE,HEALTHY HOMES,HD100,VOCATIONAL TRAINING,2970,2015-03-19,2015-03-17,CIEH,LNDON SE1 001,REDACTED,471565******5409,8699,MEMBERSHIP ORGANIZATIONS NOT ELSEWHERE CLASSIFIED,350,Pound Sterling (826),1,350,Debit,74830505076039346210327,2015-04-02,GLOUCESTER CC
Gloucester City Council,23UE,FINANCIAL SERVICES,RT200,VOCATIONAL TRAINING,2970,2015-03-27,2015-03-25,REDACTIVE,0207 8806226,REDACTED,471565******5409,7399,BUSINESS SERVICES NOT ELSEWHERE CLASSIFIED,834,Pound Sterling (826),1,834,Debit,74579155085005579295754,2015-04-02,GLOUCESTER CC
Gloucester City Council,23UE,CLIENT REVS & BENS CONTRACT,RT240,COURT FEES,5358,2015-03-31,2015-03-30,HMCOURTS-SERVICE.G,1452420100,REDACTED,471565******5409,9222,FINES,3864,Pound Sterling (826),1,3864,Debit,74579155090009075353854,2015-04-02,GLOUCESTER CC
